[Event "13th Rheinland-Pfalz-Open 2023"]
[Site "Neuwied-Engers"]
[Date "2023.06.09"]
[Round "4.8"]
[White "Polster, Christian"]
[Black "Kanli, Kaan"]
[Result "1-0"]
[Annotator "TA"]
[ECO "C27"]
[WhiteElo "2250"]
[BlackElo "2000"]
[PlyCount "34"]
[EventDate "2023.01.12"]
[EventType "swiss"]
[EventCountry "GER"]
[SourceTitle "playchess.com"]
[Source "ChessBase"]
[SourceQuality "1"]
[TimeControl "40/5400+30:1800+30"]

{[%evp 9,21,-6,81,79,75,82,81,79,336,333,502,468,487,450]} 1. e4 {[%emt 0:00:03]} e5 {[%emt 0:06:59]} 2. Nc3 {[%emt 0:01:34][%cal Bb1c3,Bc3b5,Bb5c7][%mdl 32]} Nf6 {[%emt 0:00:04]} 3. Bc4 {[%emt 0:03:43]} Nxe4 {[%emt 0:03:11]} 4. Qh5 {[%emt 0:04:35]} Nd6 {[%emt 0:00:21]} 5. Bb3 {[%emt 0:01:07]} Nc6 {[%emt 0:01:17] [#]} (5... Be7 $1 $11) 6. Nb5 $1 $16 {[%emt 0:00:26][%mdl 64] Intending Nxd6+ and mate. Deflection. C27: Vienna Game: 2...Nf6 3 Bc4 Nxe4.} g6 {[%emt 0:07:49]} (6... Nxb5 $2 7. Qxf7#) 7. Qf3 {[%emt 0:01:41] Hoping for Nxd6+. White has more active pieces. The black rooks are badly placed.} Nf5 {[%emt 0:04:55] White must now prevent ...h5.} (7... Nxb5 $2 8. Qxf7#) 8. g4 {[%emt 0:10:08]} e4 $2 {[%emt 0:01:47][%mdl 8192]} 9. Qxe4+ $18 {[%emt 0:02:09]} Nfe7 {[%emt 0:02:47]} (9... Qe7 {was worth a try.} 10. d3 Nd6 {[%mdl 64] Pin} 11. Nxc7+ Kd8 12. Qxe7+ (12. Nxa8 $2 {loses.} Nxe4 13. Be3 Nf6 $19) 12... Bxe7) 10. Qf4 $1 {[%emt 0:00:25][%csl Gf4,LRc7,LRf7][%cal Rb3f7]} d5 {[%emt 0:00:18]} 11. Nxc7+ {[%emt 0:00:23] [#] Black did not feel at home in the position after the opening.   Weighted Error Value: White=0.00 (flawless) /Black=0.96.  Loses game:     	---       	Black=1      Missed win:     	---       	---        Mistake:       	---       	Black=1      Inaccurate:     	---       	---        OK:         	White=1     	Black=1      Best:        	White=3     	Black=1      Strong:       	---       	---        Brilliant:      	---       	---} {Predecessor:} Kd7 $146 12. Nxa8 b6 13. Nf3 Bb7 14. Ba4 Bg7 15. Qxf7 Rf8 16. Qxg7 Rxf3 17. d4 b5 {1-0 Cenni,G-Piltz,K Amateur Olympiad Preliminaries-2 1924 (4)} 1-0

[Event "13th Rheinland-Pfalz-Open 2023"]
[Site "Neuwied-Engers"]
[Date "2023.06.09"]
[Round "4.9"]
[White "Perske, Paul"]
[Black "Karsay, Pascal"]
[Result "1/2-1/2"]
[Annotator "TA"]
[ECO "C77"]
[WhiteElo "2092"]
[BlackElo "2338"]
[PlyCount "159"]
[EventDate "2023.01.12"]
[EventType "swiss"]
[EventCountry "GER"]
[SourceTitle "playchess.com"]
[Source "ChessBase"]
[SourceQuality "1"]
[TimeControl "40/5400+30:1800+30"]

{[%evp 16,159,7,7,35,19,17,14,20,25,27,24,22,0,10,12,12,10,20,14,21,0,38,21,60,36,65,37,35,27,31,25,53,29,41,39,32,23,71,74,92,92,119,109,107,111,100,90,86,59,72,39,86,87,91,82,85,71,121,110,118,113,184,185,177,135,135,135,141,132,136,0,135,99,171,138,261,142,115,0,258,252,234,27,28,27,25,0,0,0,0,0,0,0,0,0,0,0,0,0,0,0,0,0,0,0,0,0,0,0,0,0,0,0,0,0,0,0,0,0,0,0,0,0,0,0,0,0,0,0,0,0,0,0,0,0,0,0,0,0,0,0,0,0,0,0]} 1. e4 {[%emt 0:00:06]} e5 {[%emt 0:00:09]} 2. Nf3 {[%emt 0:00:07]} Nc6 {[%emt 0:00:06]} 3. Bb5 {[%emt 0:00:08]} a6 {[%emt 0:00:13]} 4. Ba4 {[%emt 0:00:08]} Nf6 {[%emt 0:00:08]} 5. O-O {[%emt 0:00:13]} Be7 {[%emt 0:00:19]} 6. d3 {[%emt 0:00:16]} b5 {[%emt 0:00:26]} 7. Bb3 {[%emt 0:00:03]} d6 {[%emt 0:00:09]} 8. a3 {[%emt 0:00:08]} O-O {[%emt 0:01:04]} 9. Nc3 {[%emt 0:00:18]} Kh8 {[%emt 0:05:04] 9...Rb8 is the recent fashion. C77: Ruy Lopez: 3...a6 4 Ba4 Nf6, unusual lines.} 10. h3 {[%emt 0:03:58]} Be6 {[%emt 0:04:53]} 11. Nd5 {[%emt 0:07:15]} Na5 {[%emt 0:00:34] Hoping for ...Nxb3.} 12. Ba2 {[%emt 0:00:27] [#]} c5 $146 {[%emt 0:01:30]} ({Predecessor:} 12... Nxd5 13. Bxd5 Bxd5 14. exd5 f5 15. b4 Nb7 16. a4 Qd7 17. c4 bxc4 18. dxc4 a5 {1-0 Donchenko,A (2659)-Buhmann,R (2580) Hobbits Invitational blitz 2021 (3.11)}) 13. Nxf6 {[%emt 0:09:15]} Bxf6 {[%emt 0:00:14]} 14. Be3 {[%emt 0:00:14]} c4 {[%emt 0:07:41]} 15. d4 {[%emt 0:02:19]} exd4 {[%emt 0:02:46]} 16. Nxd4 {[%emt 0:00:26]} Re8 {[%emt 0:03:42]} 17. c3 {[%emt 0:19:05]} (17. Qh5 {feels hotter.} Kg8 18. c3 Bd7 19. Bb1) 17... Bd7 {[%emt 0:07:52]} 18. Bb1 {[%emt 0:02:31]} Nb7 {[%emt 0:03:16]} 19. Nf5 {[%emt 0:02:30]} Bc6 {[%emt 0:02:55] Dodges Qd5} 20. Re1 {[%emt 0:02:47][%cal Oa3a4]} Qd7 {[%emt 0:05:01]} 21. Qg4 {[%emt 0:03:33]} (21. Bd4 $5 {[%cal Rd4f6]}) 21... g6 {[%emt 0:05:26]} 22. Nh6 {[%emt 0:06:46]} Qxg4 {[%emt 0:04:17]} 23. hxg4 {[%emt 0:01:01]} Re7 {[%emt 0:01:48]} 24. Bc2 {[%emt 0:01:32]} Rae8 {[%emt 0:01:10]} 25. Rad1 {[%emt 0:02:27]} Bg7 {[%emt 0:03:09]} 26. f3 {[%emt 0:03:38]} Bd7 {[%emt 0:08:13]} (26... d5 $11 {was preferrable.}) 27. Kf2 $16 {[%emt 0:01:00]} Be6 {[%emt 0:07:48]} 28. g5 {[%emt 0:06:39]} f6 {[%emt 0:02:30]} 29. g4 {[%emt 0:04:12][%cal Bg2g4,Bg4g5][%mdl 32] White is more active.} Rf8 {[%emt 0:01:25]} 30. gxf6 {[%emt 0:01:57]} Bxf6 {[%emt 0:00:10]} 31. g5 {[%emt 0:02:25]} Be5 {[%emt 0:01:02]} 32. Bd4 {[%emt 0:00:47]} (32. Rh1 {with more complications.} Bc8 33. Rh4 Nc5 34. f4) 32... Ree8 {[%emt 0:03:58]} 33. Rf1 {[%emt 0:03:03]} Rf4 {[%emt 0:00:43]} (33... Nc5 $14 {is superior.}) 34. Be3 $1 {[%emt 0:00:56]} Ref8 {[%emt 0:06:46]} 35. Bxf4 {[%emt 0:00:24]} Bxf4 {[%emt 0:00:04]} 36. Rg1 {[%emt 0:00:56]} Nc5 {[%emt 0:00:37]} ({Black should try} 36... Nd8) 37. Ng4 $1 {[%emt 0:02:56]} Nd7 {[%emt 0:02:05]} 38. Ke2 {[%emt 0:02:17]} Ne5 {[%emt 0:01:59]} (38... Bxg4 $16 39. Rxg4 Ne5) 39. Nxe5 $18 {[%emt 0:01:53]} ({Inferior is} 39. Rxd6 Nxf3 40. Kxf3 (40. Rxe6 Nxg1+ 41. Kf1 Nf3 $17) 40... Bxd6+ 41. Ke2 Rf4 $17) 39... Bxe5 {[%emt 0:00:05]} 40. Ra1 {[%emt 0:06:31]} a5 {[%emt 0:00:43]} 41. Rad1 {[%emt 0:08:42]} Rb8 {[%emt 0:01:03]} 42. Ke3 {[%emt 0:00:33] Wards off Bf4+} Rf8 {[%emt 0:01:01]} 43. Ke2 {[%emt 0:02:21]} (43. Rh1 $16) 43... Bf4 {[%emt 0:00:37]} (43... Rb8 $1 $11) 44. Rd4 {[%emt 0:01:45]} Rc8 {[%emt 0:01:53]} (44... Kg7 $16 {was necessary.}) 45. Rgd1 {[%emt 0:01:38] And now Rxd6 would win.} Rc6 {[%emt 0:01:20]} (45... Rd8 $16 46. Rh1 Rb8) 46. Kf2 {[%emt 0:06:14]} ({White must play} 46. e5 $1 $18 Bxe5 47. Rh4) 46... Kg7 $16 {[%emt 0:02:33] [#]} 47. Ke2 {[%emt 0:00:31]} (47. e5 $1 $16 dxe5 48. Rd6 Rxd6 49. Rxd6) 47... Kf8 $2 {[%emt 0:00:33][%mdl 8192] [#]} (47... Kh8 $11) 48. e5 $1 $18 {[%emt 0:03:42][%mdl 64] Discovered Attack} Bxe5 {[%emt 0:00:47]} 49. Re4 {[%emt 0:00:26]} ({Only move:} 49. Rh4 $18) 49... Bf5 $11 {[%emt 0:17:13] [#]} 50. Rxe5 $1 {[%emt 0:00:15][%mdl 64] Discovered Attack} dxe5 {[%emt 0:00:04]} 51. Bxf5 {[%emt 0:00:18]} gxf5 {[%emt 0:00:04][%mdl 4096] Endgame KR-KR. The position is equal.} 52. Rd5 {[%emt 0:00:27][%csl LRb5,LRe5]} Re6 {[%emt 0:00:06]} 53. Rxb5 {[%emt 0:00:27]} Kg7 {[%emt 0:00:05]} 54. Rxa5 {[%emt 0:00:31]} Kg6 {[%emt 0:01:45]} 55. Ra7 {[%emt 0:04:40]} Rb6 {[%emt 0:00:54]} 56. f4 {[%emt 0:00:18]} Rxb2+ {[%emt 0:02:02]} 57. Ke3 {[%emt 0:00:10]} exf4+ {[%emt 0:00:59]} 58. Kxf4 {[%emt 0:00:02]} Rf2+ {[%emt 0:00:17]} 59. Ke3 {[%emt 0:00:40]} Rh2 {[%emt 0:01:29]} 60. Rc7 {[%emt 0:00:43]} Kxg5 {[%emt 0:00:21]} 61. Rxc4 {[%emt 0:00:35]} h5 {[%emt 0:00:16]} 62. Kf3 {[%emt 0:00:42]} h4 {[%emt 0:00:15]} 63. Rc8 {[%emt 0:02:55]} Rh3+ {[%emt 0:00:08]} 64. Kg2 {[%emt 0:00:38]} Rg3+ {[%emt 0:00:28]} 65. Kf2 {[%emt 0:01:54]} Rg4 {[%emt 0:01:13]} 66. c4 {[%emt 0:00:26]} Rd4 {[%emt 0:01:04]} 67. a4 {[%emt 0:01:02]} Kf4 {[%emt 0:00:48]} 68. Kg2 {[%emt 0:00:45]} Rd2+ {[%emt 0:01:15]} 69. Kh3 {[%emt 0:00:07]} Ra2 {[%emt 0:00:34]} 70. Ra8 {[%emt 0:00:46]} Ke3 {[%emt 0:03:42]} 71. Kxh4 {[%emt 0:00:29]} f4 {[%emt 0:00:10] ...f3 is the strong threat.} 72. Kh3 {[%emt 0:01:12]} f3 {[%emt 0:00:18]} 73. Re8+ {[%emt 0:00:52]} Kf2 {[%emt 0:00:12][%cal Of2f1] aiming for ...Kf1!} 74. Rb8 {[%emt 0:00:20]} Ke1 {[%emt 0:00:52][%cal Oa2a1] ...Ra1! would be deadly.} 75. Rb1+ {[%emt 0:00:32]} Ke2 {[%emt 0:00:12]} 76. Kg3 {[%emt 0:00:43]} f2 {[%emt 0:04:16]} 77. Kg2 {[%emt 0:00:05]} f1=Q+ {[%emt 0:01:31]} 78. Rxf1 {[%emt 0:00:06] White threatens Rf2+ and mate.} Kd3+ {[%emt 0:00:07]} 79. Kf3 {[%emt 0:00:18]} Kxc4 {[%emt 0:00:09]} 80. Ke4 {[%emt 0:04:33] Black defended with fortune.   Weighted Error Value: White=0.22 (precise) /Black=0.28 (precise)} 1/2-1/2

[Event "13th Rheinland-Pfalz-Open 2023"]
[Site "Neuwied-Engers"]
[Date "2023.06.09"]
[Round "4.10"]
[White "Louis, Volker"]
[Black "Boidman, Yuri"]
[Result "1/2-1/2"]
[Annotator "TA"]
[ECO "D52"]
[WhiteElo "2057"]
[BlackElo "2304"]
[PlyCount "115"]
[EventDate "2023.01.12"]
[EventType "swiss"]
[EventCountry "GER"]
[SourceTitle "playchess.com"]
[Source "ChessBase"]
[SourceQuality "1"]
[TimeControl "40/5400+30:1800+30"]

{[%evp 15,115,20,25,0,0,0,0,0,0,1,8,2,0,-18,0,-14,-18,-40,-7,-8,-9,-6,-8,-10,-9,-19,-14,-12,-9,-11,-11,-16,-14,-16,-4,-39,-4,-29,-17,-22,0,0,0,-24,-29,-29,-26,-27,-18,-25,-9,-9,-9,-9,-9,-9,-9,-9,-14,-16,-16,-16,-16,-16,-16,-16,-8,-16,-16,-16,0,0,0,-9,-9,-9,-9,-10,0,-10,-10,-10,0,0,0,0,0,0,0,0,0,0,0,0,0,0,0,0,0,-2,0,-2]} 1. d4 {[%emt 0:00:11]} d5 {[%emt 0:00:10]} 2. c4 {[%emt 0:00:09]} c6 {[%emt 0:00:06]} 3. Nc3 {[%emt 0:00:14]} Nf6 {[%emt 0:00:09]} 4. Nf3 {[%emt 0:00:45]} e6 {[%emt 0:00:09]} 5. Bg5 {[%emt 0:00:22]} Nbd7 {[%emt 0:00:12]} 6. e3 {[%emt 0:00:19]} Qa5 {[%emt 0:00:16]} 7. cxd5 {[%emt 0:00:32]} Nxd5 {[%emt 0:00:14]} 8. Qd2 {[%emt 0:06:05]} N7b6 {[%emt 0:01:28]} 9. Nxd5 {[%emt 0:07:43] D52: Queen's Gambit Declined: Cambridge Springs Variation.} Qxd2+ {[%emt 0:01:36]} 10. Nxd2 {[%emt 0:02:17]} exd5 {[%emt 0:00:55]} 11. Bd3 {[%emt 0:03:36]} Bd6 {[%emt 0:00:07]} 12. f3 {[%emt 0:07:35]} h6 {[%emt 0:01:18]} 13. Bh4 {[%emt 0:00:18]} O-O {[%emt 0:00:22] [#]} 14. e4 $146 {[%emt 0:00:59]} ({Predecessor:} 14. O-O c5 15. dxc5 Bxc5 16. Bf2 Re8 17. Rfe1 Bd7 18. Nb3 Bb4 19. Re2 Nc4 20. a3 {½-½ Stock,H (1700)-Bitzer,D (1833) Wch Seniors 08th 1998 (9)}) 14... Bf4 {[%emt 0:06:24]} 15. Bf2 {[%emt 0:03:55]} Be6 {[%emt 0:06:36]} 16. g3 {[%emt 0:05:18]} dxe4 {[%emt 0:03:48]} 17. Nxe4 {[%emt 0:13:01]} Bc7 {[%emt 0:01:49]} 18. O-O {[%emt 0:05:06]} Rad8 {[%emt 0:04:40]} 19. Nc5 {[%emt 0:02:34]} Bc8 {[%emt 0:00:47]} 20. b4 {[%emt 0:03:40]} Nd5 {[%emt 0:02:25]} 21. a3 {[%emt 0:04:00]} Rfe8 {[%emt 0:02:22]} 22. Rfe1 {[%emt 0:00:42]} Rxe1+ {[%emt 0:01:08]} 23. Rxe1 {[%emt 0:00:51]} Kf8 {[%emt 0:00:12]} 24. Rc1 {[%emt 0:08:27]} a6 {[%emt 0:00:44]} 25. Rb1 {[%emt 0:01:42]} Bb6 {[%emt 0:00:48]} 26. Re1 {[%emt 0:04:51]} Nc7 {[%emt 0:02:34]} 27. Ra1 {[%emt 0:05:02]} Ne6 {[%emt 0:00:29]} 28. Bf5 $1 {[%emt 0:01:22]} Nxc5 {[%emt 0:09:42][%mdl 64] [#] Discovered Attack} (28... Nxd4 $2 29. Bxc8 Bxc5 30. bxc5 $18) 29. bxc5 {[%emt 0:00:13]} (29. dxc5 $5 {[%cal Rf5c8]} Bxf5 30. cxb6 $11) 29... Bxf5 {[%emt 0:02:25]} 30. cxb6 $11 {[%emt 0:00:05][%mdl 4096] Endgame KRB-KRB} Rd5 {[%emt 0:02:40]} 31. a4 {[%emt 0:00:30]} Bc2 {[%emt 0:00:08]} 32. Be3 {[%emt 0:04:38]} Ra5 {[%emt 0:01:42]} 33. Rc1 {[%emt 0:00:32] The position is equal.} Bb3 {[%emt 0:00:58]} ({But not} 33... Bxa4 34. Ra1 $16) 34. Rxc6 {[%emt 0:01:27][%mdl 64] [#] Promotion} Bd5 {[%emt 0:01:12]} (34... bxc6 $2 35. b7 Rd5 36. b8=Q+ $18 (36. b8=B $2 {too greedy.} Ke8 $19)) 35. Rc5 {[%emt 0:01:42]} Rxc5 {[%emt 0:00:14]} 36. dxc5 {[%emt 0:00:01]} Bxf3 {[%emt 0:00:12] KB-KB} 37. Kf2 {[%emt 0:00:21]} Bc6 {[%emt 0:01:02]} 38. a5 {[%emt 0:00:05]} Ke7 {[%emt 0:00:13]} 39. Bf4 {[%emt 0:01:59]} Ke6 {[%emt 0:00:18]} 40. Bd6 {[%emt 0:01:15]} g6 {[%emt 0:00:14]} 41. Ke3 {[%emt 0:31:22]} Kd5 {[%emt 0:30:55]} 42. Bf8 {[%emt 0:01:32]} Kc4 {[%emt 0:01:20]} (42... h5 $5 {[%cal Rd5c4]}) 43. Bxh6 {[%emt 0:00:38]} Kb5 {[%emt 0:00:14]} 44. Kd4 {[%emt 0:00:00]} Kxa5 {[%emt 0:00:00]} 45. Bd2+ {[%emt 0:00:00]} Kb5 {[%emt 0:00:00]} 46. h4 {[%emt 0:00:00]} Bd7 {[%emt 0:00:00]} 47. Be3 {[%emt 0:00:00]} a5 {[%emt 0:00:00]} 48. Bc1 {[%emt 0:00:00]} a4 {[%emt 0:00:00]} 49. Ba3 {[%emt 0:00:00]} Bc6 {[%emt 0:00:00]} 50. g4 {[%emt 0:00:00] aiming for h5.} Bf3 {[%emt 0:00:00]} 51. g5 {[%emt 0:00:00]} Kc6 {[%emt 0:00:00]} 52. Bb4 {[%emt 0:00:00]} Kd7 {[%emt 0:00:00]} 53. Ke5 {[%emt 0:00:00]} Kc6 {[%emt 0:00:00]} 54. Kd4 {[%emt 0:00:00]} Bg2 {[%emt 0:00:00]} 55. Ba3 {[%emt 0:00:00]} Kb5 {[%emt 0:00:00]} 56. Kc3 {[%emt 0:00:00]} Bf3 {[%emt 0:00:00]} 57. Kd4 {[%emt 0:00:00]} Bg2 {[%emt 0:00:00]} 58. Kc3 {[%emt 0:00:00] A balanced but interesting game.   Weighted Error Value: White=0.05 (flawless) /Black=0.04 (flawless)} 1/2-1/2

[Event "13th Rheinland-Pfalz-Open 2023"]
[Site "Neuwied-Engers"]
[Date "2023.06.10"]
[Round "5.1"]
[White "Boehme, Sebastian"]
[Black "Winterberg, Lukas"]
[Result "0-1"]
[Annotator "TA"]
[ECO "C11"]
[WhiteElo "2163"]
[BlackElo "2405"]
[PlyCount "64"]
[EventDate "2023.01.12"]
[EventType "swiss"]
[EventCountry "GER"]
[SourceTitle "playchess.com"]
[Source "ChessBase"]
[SourceQuality "1"]
[TimeControl "40/5400+30:1800+30"]

{[%evp 13,63,0,22,17,29,-25,20,14,20,0,0,0,0,0,3,-20,-25,-78,-101,-94,-62,-180,-116,-114,-115,-79,36,-414,-401,-447,-442,-487,-486,-525,-498,-527,-522,-589,-566,-564,-522,-1799,-1739,-2814,-2480,-29977,-5641,-29997,-29998,-29998,-29999,-29999]} 1. e4 {[%emt 0:00:05]} e6 {[%emt 0:00:21]} 2. d4 {[%emt 0:00:11]} d5 {[%emt 0:00:08]} 3. Nc3 {[%emt 0:00:40]} Nf6 {[%emt 0:00:14]} 4. e5 {[%emt 0:00:06]} Nfd7 {[%emt 0:00:12]} 5. f4 {[%emt 0:00:06]} c5 {[%emt 0:00:16]} 6. Nf3 {[%emt 0:00:06]} Nc6 {[%emt 0:00:14]} 7. Be3 {[%emt 0:00:09]} a6 {[%emt 0:00:09]} 8. Ne2 {[%emt 0:00:22] C11: French: Classical System: 4 e5 and 4 Bg5 dxe4.} Be7 {[%emt 0:00:40]} 9. dxc5 {[%emt 0:01:53]} (9. c3 $142) 9... O-O {[%emt 0:00:32]} 10. Ned4 {[%emt 0:01:25] The position is equal.} Nxc5 {[%emt 0:00:37] [#]} 11. Bd3 $146 {[%emt 0:02:29]} ({Predecessor:} 11. Nxc6 bxc6 12. Nd4 Bb7 13. Bd3 Nxd3+ 14. Qxd3 c5 15. Nf3 a5 16. O-O-O c4 17. Qe2 {1-0 Eggers Gutierrez,H-Espinoza Catalan,D Santiago Endesa Universities 1st 2008 (4)}) 11... Nxd4 {[%emt 0:04:55]} 12. Bxd4 {[%emt 0:04:22]} Qc7 {[%emt 0:02:36]} 13. O-O {[%emt 0:01:12]} b5 {[%emt 0:01:22]} 14. Ng5 {[%emt 0:10:22]} h6 {[%emt 0:20:14] Hoping for ...Nxd3.} 15. Nh7 {[%emt 0:16:40] [#]} (15. Bh7+ $11 Kh8 16. Rf3) 15... Nxd3 $1 $17 {[%emt 0:00:50]} 16. Qxd3 {[%emt 0:00:16]} (16. Nxf8 $2 Nc5 17. Nxe6 (17. b4 $2 Ne4 $19) 17... Nxe6 $17) 16... Rd8 {[%emt 0:00:15] ...Qc4 would be deadly.} 17. b3 {[%emt 0:01:41] [#] Prevents Qc4} (17. c3 $1 $15) 17... b4 {[%emt 0:03:53]} (17... Bc5 $1 $19 {[%cal Rc5d4] White must now prevent ...Bxd4+.} 18. c3 b4 19. Nf6+ gxf6 20. exf6 Bxd4+ 21. cxd4 Qc3 22. Qxc3 bxc3) 18. Nf6+ {[%emt 0:04:22]} gxf6 {[%emt 0:00:27]} 19. exf6 {[%emt 0:00:34]} ({Avoid the trap} 19. Qg3+ $2 Kh8 20. exf6 Bf8 $19) 19... Bd6 {[%emt 0:02:09]} ({Black should try} 19... Bf8 $17 20. c3 a5 21. Qg3+ Kh8) 20. Qe3 $2 {[%emt 0:14:58][%mdl 8192] White does not recover from this.} (20. Qg3+ $14 {is the one way to stay ahead.} Kf8 21. Rac1) 20... Qxc2 $19 {[%emt 0:05:54]} 21. Rf3 {[%emt 0:02:50]} Kh7 {[%emt 0:06:06]} 22. Rh3 {[%emt 0:04:54][%cal Oh3h6] Rxh6+! would kill now.} Qf5 {[%emt 0:02:31]} 23. Be5 {[%emt 0:04:17] [#]} d4 $1 {[%emt 0:15:25][%cal Bd5d4,Bd4d3][%mdl 32]} 24. Qg3 {[%emt 0:05:24][%csl Ge5,Gf6][%cal Rg3g7]} (24. Qxd4 Bxe5) 24... Bf8 {[%emt 0:05:44] Dodges Qg7+} 25. Qf3 {[%emt 0:02:12] Prevents Bb7} Ra7 {[%emt 0:00:38] Strongly threatening ...d3.} 26. g4 {[%emt 0:01:00]} Qc2 {[%emt 0:00:40] aiming for ...d3.} 27. Qf1 {[%emt 0:04:25]} d3 {[%emt 0:01:05] ( -> ...Bc5+)} 28. Bd6 {[%emt 0:00:33]} Bxd6 {[%emt 0:02:12]} 29. Rxh6+ {[%emt 0:00:09]} Kg8 $1 {[%emt 0:00:08]} ({Much less strong is} 29... Kxh6 30. Qh3+ Kg6 31. Qh5+ Kxf6 32. Qg5#) 30. Qh3 {[%emt 0:01:06]} Bc5+ {[%emt 0:00:10] Black mates.} 31. Kh1 {[%emt 0:00:11]} Bb7+ {[%emt 0:00:09]} 32. Qg2 {[%emt 0:00:04]} Bxg2# {[%emt 0:01:32] Weighted Error Value: White=1.15/Black=0.15 (very precise) .  Loses game:     	White=1     	---        Missed win:     	---       	---        Mistake:       	White=3     	Black=2      Inaccurate:     	White=2     	Black=2      OK:         	White=2     	Black=7      Best:        	White=1     	Black=3      Strong:       	---       	Black=1      Brilliant:      	---       	---} 0-1